Workbook

Sheet Flexible Budget
B3: Flexible Budget
B4: =NOW() -> 2010-04-19T19:45:02.350
D6: Variable Cost | E6: Unit Levels of Activity
B7: Cost Item | D7: Per Unit | E7: 15,000 | F7: 17,500 | G7: 20,000
B8: Direct Materials | D8: $2.40 | E8: =IF(D8,$D$8*E7,"") -> $36,000 | F8: =IF(D8,D8*$F$7,"") -> $42,000 | G8: =IF(D8,D8*$G$7,"") -> $48,000
B9: Direct Labor | D9: $3.90 | E9: =IF(D9,D9*$E$7,"") -> 58,500 | F9: 68,250 | G9: 78,000
B10: Variable Factory Overhead
B11: Indirect Materials | D11: $0.60 | E11: =IF(D11,D11*$E$7,"") -> 9,000 | F11: 10,500 | G11: 12,000
B12: Indirect Labor | D12: $0.80 | E12: =IF(D12,D12*$E$7,"") -> 12,000 | F12: 14,000 | G12: 16,000
B13: Utilities | D13: $0.40 | E13: =IF(D13,D13*$E$7,"") -> 6,000 | F13: 7,000 | G13: 8,000
B14: Other | D14: $0.50 | E14: =IF(D14,D14*$E$7,"") -> 7,500 | F14: 8,750 | G14: 10,000
B15: Total Variable Costs | D15: =IF(SUM(D8:D9,D11:D14),SUM(D8:D9,D11:D14),"") -> $8.60 | E15: =IF(SUM(E8:E9,E11:E14),SUM(E8:E9,E11:E14),"") -> $129,000 | F15: =IF(SUM(F8:F9,F11:F14),SUM(F8:F9,F11:F14),"") -> $150,500 | G15: =IF(SUM(G8:G9,G11:G14),SUM(G8:G9,G11:G14),"") -> $172,000
B17: Fixed Factory Overhead
B18: Supervisory Salaries | E18: $19,000 | F18: $19,000 | G18: $19,000
B19: Depreciation | E19: 15,000 | F19: 15,000 | G19: 15,000
B20: Utilities | E20: 4,500 | F20: 4,500 | G20: 4,500
B21: Other | E21: 10,900 | F21: 10,900 | G21: 10,900
B22: Total Fixed Costs | E22: =IF(SUM(E18:E21),SUM(E18:E21),"") -> $49,400 | F22: =IF(SUM(F18:F21),SUM(F18:F21),"") -> $49,400 | G22: =IF(SUM(G18:G21),SUM(G18:G21),"") -> $49,400
B23: Total Costs | E23: =IF(SUM(E15,E22),SUM(E15,E22),"") -> $178,400 | F23: =IF(SUM(F15,F22),SUM(F15,F22),"") -> $199,900 | G23: =IF(SUM(G15,G22),SUM(G15,G22),"") -> $221,400
